fUSD/lending_fUSD_20260427
["ID","MTS","AMOUNT","RATE_DAILY","PERIOD"]
[421187988,1777225844561,-317.0,0.00019513,2]
[421187989,1777225844570,-314.0,0.00019515,2]
[421187990,1777225844580,-310.0,0.00019517,2]
[421187991,1777225844589,-314.0,0.00019521,2]
[421187992,1777225844599,-332.65,0.00019523,2]
[421187993,1777225844610,-314.0,0.00019525,2]
[421187994,1777225844619,-310.0,0.00019527,2]
[421187995,1777225844631,-314.0,0.00019527,2]
[421187996,1777225844642,-427.3,0.00019528,2]
[421187997,1777225844653,-317.0,0.0001953,2]
[421187998,1777225844662,-310.0,0.00019534,2]
[421187999,1777225844673,-317.0,0.00019541,2]
[421188000,1777225844684,-314.0,0.00019543,2]
[421188001,1777225844694,-377.0,0.00019549,2]
[421188002,1777225844705,-155.94716998,0.00019551,2]
[421188003,1777225844715,-317.0,0.00019551,2]
[421188004,1777225844726,-314.0,0.00019561,2]
[421188005,1777225844738,-150.0,0.00019562,4]
[421188006,1777225844747,-314.0,0.00019563,2]
[421188007,1777225844757,-310.0,0.00019565,2]
[421188008,1777225844766,-314.0,0.00019566,2]
[421188009,1777225844777,-310.0,0.00019569,2]
[421188010,1777225844787,-317.0,0.0001957,2]
[421188011,1777225844797,-500.0,0.00019573,2]
[421188012,1777225844807,-500.0,0.00019573,2]
[421188013,1777225844818,-161.11375159,0.00019573,2]
[421188014,1777225844828,-500.0,0.00019573,2]
[421188015,1777225844838,-194.82693403,0.00019573,2]
[421188016,1777225844848,-500.0,0.00019573,2]
[421188017,1777225844858,-500.0,0.00019573,2]
[421188018,1777225844867,-500.0,0.00019573,2]
[421188019,1777225844877,-500.0,0.00019573,2]
[421188020,1777225844886,-500.0,0.00019573,2]
[421188021,1777225844895,-500.0,0.00019573,2]
[421188022,1777225844905,-573.32182295,0.00019573,2]
[421188023,1777225844915,-500.0,0.00019573,2]
[421188024,1777225844924,-169.08382474,0.00019573,2]
[421188025,1777225844934,-500.0,0.00019573,2]
[421188026,1777225844943,-500.0,0.00019573,2]
[421188027,1777225844952,-408.8564751,0.00019573,2]
[421188028,1777225844961,-500.0,0.00019573,2]
[421188029,1777225844972,-500.0,0.00019573,2]
[421188030,1777225844982,-167.19326643,0.00019573,2]
[421188031,1777225844991,-500.0,0.00019573,2]
[421188032,1777225845001,-500.0,0.00019573,2]
[421188033,1777225845012,-564.07520171,0.00019573,2]
[421188034,1777225845024,-500.0,0.00019573,2]
[421188035,1777225845034,-314.0,0.00019575,2]
[421188036,1777225845043,-314.0,0.00019575,2]
[421188037,1777225845053,-314.0,0.00019581,2]
[421188038,1777225845063,-223.0,0.00019584,2]
[421188039,1777225845074,-310.0,0.00019585,2]
[421188040,1777225845085,-150.0,0.00019587,4]
[421188041,1777225845095,-150.0,0.00019587,4]
[421188042,1777225845105,-150.0,0.00019587,4]
[421188043,1777225845115,-317.0,0.00019588,2]
[421188044,1777225845126,-1532.0,0.00019591,2]
[421188045,1777225845137,-152.0,0.00019591,2]
[421188046,1777225845448,-1532.0,0.00019591,2]
[421188047,1777225845458,-152.0,0.00019591,2]
[421188048,1777225845469,-1532.0,0.00019591,2]
[421188049,1777225845481,-1532.0,0.00019591,2]
[421188050,1777225845492,-152.0,0.00019591,2]
[421188051,1777225845501,-1532.0,0.00019591,2]
[421188052,1777225845512,-152.0,0.00019591,2]
[421188053,1777225845522,-152.0,0.00019591,2]
[421188054,1777225845532,-1532.0,0.00019591,2]
[421188055,1777225845541,-152.0,0.00019591,2]
[421188056,1777225845552,-1532.0,0.00019591,2]
[421188057,1777225845561,-1532.0,0.00019591,2]
[421188058,1777225845571,-152.0,0.00019591,2]
[421188059,1777225845581,-152.0,0.00019591,2]
[421188060,1777225845592,-1532.0,0.00019591,2]
[421188061,1777225845601,-1532.0,0.00019591,2]
[421188062,1777225845612,-1532.0,0.00019591,2]
[421188063,1777225845622,-1532.0,0.00019591,2]
[421188064,1777225845632,-1532.0,0.00019591,2]
[421188065,1777225845643,-1532.0,0.00019591,2]
[421188066,1777225845652,-1532.0,0.00019591,2]
[421188067,1777225845662,-1532.0,0.00019591,2]
[421188068,1777225845671,-1532.0,0.00019591,2]
[421188069,1777225845681,-1532.0,0.00019591,2]
[421188070,1777225845690,-1532.0,0.00019591,2]
[421188071,1777225845699,-1532.0,0.00019591,2]
[421188072,1777225845709,-1532.0,0.00019591,2]
[421188073,1777225845719,-1532.0,0.00019591,2]
[421188074,1777225845728,-1532.0,0.00019591,2]
[421188075,1777225845739,-1532.0,0.00019591,2]
[421188076,1777225845750,-1532.0,0.00019591,2]
[421188077,1777225845760,-1532.0,0.00019591,2]
[421188078,1777225845770,-1532.0,0.00019591,2]
[421188079,1777225845780,-1532.0,0.00019591,2]
[421188080,1777225845789,-1499.49281257,0.00019591,2]
[421188081,1777225845799,-186.49017234,0.00019591,2]
[421188082,1777225845808,-154.0,0.00019591,2]
[421188083,1777225845819,-154.0,0.00019591,2]
[421188084,1777225845831,-154.0,0.00019591,2]
[421188085,1777225845840,-154.0,0.00019591,2]
[421188086,1777225845851,-154.0,0.00019591,2]
[421188087,1777225845861,-154.0,0.00019591,2]
[421188088,1777225845871,-256.54529692,0.00019591,2]
[421188089,1777225845880,-152.0,0.00019591,2]
[421188090,1777225845890,-152.0,0.00019591,2]
[421188091,1777225845900,-152.0,0.00019591,2]
[421188092,1777225845909,-152.0,0.00019591,2]
[421188093,1777225845919,-152.0,0.00019591,2]
[421188094,1777225845929,-152.0,0.00019591,2]
[421188095,1777225845939,-152.0,0.00019591,2]
[421188096,1777225845949,-160.98197921,0.00019591,2]
[421188097,1777225845959,-243.70678693,0.00019591,2]
[421188098,1777225845969,-233.442321,0.00019591,2]
[421188099,1777225845980,-244.552684,0.00019591,2]
[421188100,1777225845990,-244.552684,0.00019591,2]
[421188101,1777225846000,-244.552684,0.00019591,2]
[421188102,1777225846009,-1242.620999,0.00019591,2]
[421188103,1777225846019,-244.552684,0.00019591,2]
[421188104,1777225846029,-1242.620999,0.00019591,2]
[421188105,1777225846038,-1242.620999,0.00019591,2]
[421188106,1777225846047,-1242.620999,0.00019591,2]
[421188107,1777225846057,-1286.88278,0.00019591,2]
[421188108,1777225846067,-1286.88277,0.00019591,2]
[421188109,1777225846077,-1286.88278,0.00019591,2]
[421188110,1777225846087,-1286.88277,0.00019591,2]
[421188111,1777225846096,-153.58234,0.00019591,2]
[421188112,1777225846106,-153.58234,0.00019591,2]
[421188113,1777225846115,-153.58234,0.00019591,2]
[421188114,1777225846125,-153.58234,0.00019591,2]
[421188115,1777225846135,-151.0,0.00019591,2]
[421188116,1777225846145,-151.0,0.00019591,2]
[421188117,1777225846155,-151.0,0.00019591,2]
[421188118,1777225846164,-869.791808,0.00019591,2]
[421188119,1777225846174,-869.791808,0.00019591,2]
[421188120,1777225846183,-869.791808,0.00019591,2]
[421188121,1777225846192,-869.791808,0.00019591,2]
[421188122,1777225846200,-151.0,0.00019591,2]
[421188123,1777225846210,-151.0,0.00019591,2]
[421188124,1777225846219,-151.0,0.00019591,2]
[421188125,1777225846229,-2085.0,0.00019591,2]
[421188126,1777225846239,-2085.0,0.00019591,2]
[421188127,1777225846248,-2085.0,0.00019591,2]
[421188128,1777225846258,-2085.0,0.00019591,2]
[421188129,1777225846267,-2085.0,0.00019591,2]
[421188130,1777225846276,-2085.0,0.00019591,2]
[421188131,1777225846286,-2085.0,0.00019591,2]
[421188132,1777225846296,-2085.0,0.00019591,2]
[421188133,1777225846306,-2085.0,0.00019591,2]
[421188134,1777225846315,-1735.0,0.00019591,2]
[421188135,1777225846325,-151.0,0.00019591,2]
[421188136,1777225846334,-1124.90405,0.00019591,2]
[421188137,1777225846343,-1124.90405,0.00019591,2]
[421188138,1777225846352,-1124.90405,0.00019591,2]
[421188139,1777225846361,-1124.90405,0.00019591,2]
[421188140,1777225846370,-151.0,0.00019591,2]
[421188141,1777225846380,-151.0,0.00019591,2]
[421188142,1777225846389,-151.0,0.00019591,2]
[421188143,1777225846398,-310.0,0.00019592,2]
[421188144,1777225846407,-317.0,0.00019598,2]
[421188145,1777225846416,-161.0,0.000196,2]
[421188146,1777225846426,-2003.0,0.000196,2]
[421188147,1777225846435,-2364.72,0.000196,2]
[421188148,1777225846444,-314.0,0.00019604,2]
[421188149,1777225846454,-317.0,0.00019606,2]
[421188150,1777225846463,-310.0,0.00019609,2]
[421188151,1777225846473,-161.0,0.0001961,2]
[421188152,1777225846482,-150.0,0.00019637,4]
[421188153,1777225846492,-12416.54962031,0.00019679,2]
[421188154,1777225846502,-150.0,0.000197,5]
[421188155,1777225846511,-150.0,0.00019712,4]
[421188156,1777225846520,-523.66,0.00019769,2]
[421188157,1777225846530,-347.81,0.00019769,2]
[421188158,1777225846539,-245.0,0.00019782,5]
[421188159,1777225846548,-150.0,0.00019787,4]
[421188160,1777225846558,-150.0,0.00019862,4]
[421188161,1777225846568,-3300.0,0.000199,7]
[421188162,1777225846577,-1000.0,0.00019921,2]
[421188163,1777225846586,-1000.0,0.00019921,2]
[421188164,1777225846595,-1000.0,0.00019921,2]
[421188165,1777225846604,-1000.0,0.00019921,2]
[421188166,1777225846614,-1000.0,0.00019921,2]
[421188167,1777225846624,-151.0,0.00019921,2]
[421188168,1777225846633,-151.0,0.00019921,2]
[421188169,1777225846643,-150.0,0.00019937,4]
[421188170,1777225846652,-200.0,0.00019942,2]
[421188171,1777225846661,-153.30079617,0.00019942,2]
[421188172,1777225846671,-171.97079763,0.00019973,2]
[421188173,1777225846680,-1217.90324046,0.0001999,2]
[421188174,1777225846689,-256.45192907,0.00019997,2]
[421188175,1777225846699,-300.0,0.00019999,2]
[421188176,1777225846709,-300.0,0.00019999,2]
[421188177,1777225846719,-300.0,0.00019999,2]
[421188178,1777225846728,-666.0,0.00019999,2]
[421188179,1777225846738,-666.0,0.00019999,2]
[421188180,1777225846748,-2026.4,0.00019999,2]
[421188181,1777225846757,-151.0,0.00019999,2]
[421188182,1777225846766,-151.0,0.00019999,2]
[421188183,1777225846776,-151.0,0.00019999,2]
[421188184,1777225846785,-151.0,0.00019999,2]
[421188185,1777225846795,-151.0,0.00019999,2]
[421188186,1777225846805,-500.0,0.00019999,2]
[421188187,1777225846814,-500.0,0.00019999,2]
[421188188,1777225846823,-500.0,0.00019999,2]
[421188189,1777225846833,-500.0,0.00019999,2]
[421188190,1777225846843,-536.18,0.00019999,2]
[421188191,1777225846852,-500.42,0.00019999,2]
[421188192,1777225846862,-1851.0,0.0002,2]
[421188193,1777225846872,-180.0,0.0002,2]
[421188194,1777225846881,-212.03,0.0002,2]
[421188195,1777225846891,-1548.63403997,0.0002,2]
[421188196,1777225846900,-178.19630804,0.0002,2]
[421188198,1777225846910,-1484.96917402,0.0002,5]
[421188199,1777225846920,-1307.39062787,0.0002,2]
[421188200,1777225846929,-302.31051346,0.0002,10]
[421188201,1777225846939,-160.0,0.0002,30]
[421188202,1777225846948,-408.0,0.0002,2]
[421188203,1777225846958,-580.0,0.0002,2]
[421188204,1777225846968,-613.0,0.0002,2]
[421188205,1777225846978,-138983.9,0.0002,30]
[421188206,1777225846987,-200.0,0.0002,2]
[421188207,1777225846998,-202.0,0.0002,2]
[421188208,1777225847007,-836.0,0.0002,2]
[421188209,1777225847016,-309.0,0.0002,2]
[421188210,1777225847026,-294.0,0.0002,2]
[421188211,1777225847036,-351.0,0.0002,2]
[421188212,1777225847046,-151.0,0.0002,2]
[421188213,1777225847056,-151.0,0.0002,2]
[421188214,1777225847066,-315.842369,0.0002,2]
[421188215,1777225847075,-151.0,0.0002,3]
[421188216,1777225847085,-266.296143,0.0002,3]
[421188217,1777225847095,-315.842369,0.0002,2]
[421188218,1777225847105,-315.842369,0.0002,2]
[421188219,1777225847114,-315.842369,0.0002,2]
[421188220,1777225847124,-151.0,0.0002,2]
[421188221,1777225847133,-157.830296,0.0002,2]
[421188222,1777225847143,-151.0,0.0002,2]
[421188223,1777225847152,-193.226308,0.0002,2]
[421188224,1777225847162,-151.0,0.0002,2]
[421188225,1777225847171,-151.0,0.0002,2]
[421188227,1777225847181,-151.0,0.0002,2]
[421188228,1777225847191,-244.552684,0.0002,2]
[421188229,1777225847201,-244.552684,0.0002,2]
[421188230,1777225847210,-244.552684,0.0002,2]
[421188231,1777225847220,-1242.620999,0.0002,2]
[421188232,1777225847230,-244.552682,0.0002,2]
[421188233,1777225847240,-1242.620999,0.0002,2]
[421188234,1777225847249,-1242.620999,0.0002,2]
[421188235,1777225847259,-1242.621,0.0002,2]
[421188236,1777225847269,-153.58234,0.0002,2]
[421188237,1777225847279,-153.58234,0.0002,2]
[421188238,1777225847288,-153.58234,0.0002,2]
[421188239,1777225847298,-153.582334,0.0002,2]
[421188240,1777225847307,-151.0,0.0002,2]
[421188241,1777225847316,-151.0,0.0002,2]
[421188242,1777225847326,-168.453955,0.0002,2]
[421188243,1777225847336,-193.155,0.0002,2]
[421188244,1777225847345,-869.791808,0.0002,2]
[421188245,1777225847355,-869.791808,0.0002,2]
[421188246,1777225847365,-869.791808,0.0002,2]
[421188247,1777225847375,-869.791811,0.0002,2]
[421188248,1777225847384,-151.0,0.0002,2]
[421188249,1777225847394,-151.0,0.0002,2]
[421188250,1777225847403,-151.0,0.0002,2]
[421188251,1777225847412,-570.0,0.0002,2]
[421188252,1777225847422,-261.222742,0.0002,2]
[421188253,1777225847433,-1124.90405,0.0002,2]
[421188254,1777225847443,-1124.90405,0.0002,2]
[421188255,1777225847453,-1124.90405,0.0002,2]
[421188256,1777225847462,-1124.904058,0.0002,2]
[421188257,1777225847472,-151.0,0.0002,2]
[421188258,1777225847482,-151.0,0.0002,2]
[421188259,1777225847492,-151.0,0.0002,2]
[421188260,1777225847502,-1481.23780761,0.00020009,2]
[421188261,1777225847512,-200.0,0.00020009,2]
[421188262,1777225847523,-859.80605061,0.00020009,2]
[421188263,1777225847532,-217.15233878,0.00020009,2]
[421188264,1777225847542,-201.93286099,0.00020009,2]
[421188265,1777225847551,-150.0,0.00020012,4]
[421188266,1777225847561,-150.0,0.0002002,2]
[421188267,1777225847571,-150.0,0.0002002,2]
[421188268,1777225847581,-150.0,0.0002002,2]
[421188269,1777225847590,-150.0,0.0002002,2]
[421188270,1777225847600,-150.0,0.0002002,2]
[421188271,1777225847610,-150.0,0.0002002,2]
[421188272,1777225847621,-150.0,0.0002002,2]
[421188273,1777225847631,-150.0,0.0002002,2]
[421188274,1777225847642,-229.0,0.0002002,2]
[421188275,1777225847653,-284.87,0.00020028,2]
[421188276,1777225847663,-150.0,0.00020087,4]
[421188277,1777225847672,-284.87,0.00020115,2]
[421188278,1777225847682,-1000.0,0.00020121,2]
[421188279,1777225847692,-1000.0,0.00020121,2]
[421188280,1777225847701,-1000.0,0.00020121,2]
[421188281,1777225847711,-1000.0,0.00020121,2]
[421188282,1777225847721,-898.29568848,0.00020121,2]
[421188283,1777225847731,-1000.0,0.00020121,2]
[421188284,1777225847740,-615.10565897,0.00020121,2]
[421188285,1777225847751,-1000.0,0.00020121,2]
[421188286,1777225847760,-1000.0,0.00020121,2]
[421188287,1777225847771,-1000.0,0.00020121,2]
[421188288,1777225847782,-1000.0,0.00020121,2]
[421188289,1777225847910,-908.71542541,0.00020121,2]
[421188290,1777225847920,-1000.0,0.00020121,2]
[421188291,1777225847930,-1000.0,0.00020121,2]
[421188292,1777225847939,-1000.0,0.00020121,2]
[421188293,1777225847948,-150.0,0.00020149,2]
[421188294,1777225847957,-150.0,0.00020149,2]
[421188295,1777225847966,-150.0,0.00020149,2]
[421188296,1777225847975,-150.0,0.00020149,2]
[421188297,1777225847984,-150.0,0.00020149,2]
[421188298,1777225847993,-150.0,0.00020149,2]
[421188299,1777225848003,-215.0,0.00020149,2]
[421188300,1777225848012,-250.0,0.00020156,2]
[421188301,1777225848022,-250.0,0.00020156,2]
[421188302,1777225848031,-250.0,0.00020156,2]
[421188303,1777225848040,-250.0,0.00020156,2]
[421188304,1777225848049,-250.0,0.00020156,2]
[421188305,1777225848058,-250.0,0.00020156,2]
[421188306,1777225848067,-250.0,0.00020156,2]
[421188307,1777225848076,-293.0,0.00020156,2]
[421188308,1777225848086,-150.0,0.00020162,4]
[421188309,1777225848096,-164.07223371,0.00020189,2]
[421188310,1777225848107,-284.86,0.00020201,2]
[421188311,1777225848117,-274.0,0.0002021,2]
[421188312,1777225848127,-150.0,0.0002021,2]
[421188313,1777225848136,-196.0,0.0002021,2]
[421188314,1777225848145,-274.44882796,0.0002022,21]
[421188315,1777225848155,-150.0,0.00020237,4]
[421188316,1777225848164,-305.79627284,0.00020264,2]
[421188317,1777225848173,-150.0,0.00020287,4]
[421188318,1777225848182,-150.0,0.00020287,4]
[421188319,1777225848192,-150.0,0.00020287,4]
[421188320,1777225848202,-150.0,0.00020312,4]
[421188321,1777225848212,-300.0,0.00020321,2]
[421188322,1777225848221,-300.0,0.00020321,2]
[421188323,1777225848232,-666.0,0.00020321,2]
[421188324,1777225848242,-666.0,0.00020321,2]
[421188325,1777225848251,-155.0,0.0002035,2]
[421188326,1777225848260,-150.0,0.00020387,4]
[421188327,1777225848269,-1226.14,0.000204,2]
[421188328,1777225848278,-150.0,0.00020462,4]
[421188329,1777225848288,-1500.0,0.00020468,2]
[421188330,1777225848297,-1538.4507201,0.00020468,2]
[421188331,1777225848306,-1500.0,0.00020468,2]
[421188332,1777225848316,-1500.0,0.00020468,2]
[421188333,1777225848326,-1500.0,0.00020468,2]
[421188334,1777225848337,-200.0,0.0002049,2]
[421188335,1777225848347,-150.0,0.00020537,4]
[421188336,1777225848358,-670.58624095,0.00020556,2]
[421188337,1777225848368,-1536.04360649,0.00020557,2]
[421188338,1777225848377,-200.0,0.00020557,2]
[421188339,1777225848386,-891.61887448,0.00020557,2]
[421188340,1777225848395,-225.18697532,0.00020557,2]
[421188341,1777225848405,-209.40437684,0.00020557,2]
[421188342,1777225848414,-2000.0,0.00020594,2]
[421188343,1777225848423,-2364.72,0.000206,2]
[421188344,1777225848432,-4072.5,0.0002061,2]
[421188345,1777225848443,-150.0,0.00020612,4]
[421188346,1777225848453,-700.0,0.00020657,2]
[421188347,1777225848463,-1500.0,0.00020668,2]
[421188348,1777225848473,-424.17411181,0.00020668,2]
[421188349,1777225848484,-1500.0,0.00020668,2]
[421188350,1777225848495,-1500.0,0.00020668,2]
[421188351,1777225848504,-1500.0,0.00020668,2]
[421188352,1777225848513,-1500.0,0.00020668,2]
[421188353,1777225848523,-1500.0,0.00020668,2]
[421188354,1777225848532,-1500.0,0.00020668,2]
[421188355,1777225848541,-1500.0,0.00020668,2]
[421188356,1777225848550,-1500.0,0.00020668,2]
[421188357,1777225848560,-296.98002358,0.00020668,2]
[421188358,1777225848569,-1500.0,0.00020668,2]
[421188359,1777225848579,-150.0,0.00020686,4]
[421188360,1777225848588,-155.94717001,0.00020688,2]
[421188361,1777225848597,-376.7,0.00020743,2]
[421188362,1777225848608,-627.84,0.00020743,2]
[421188363,1777225848617,-150.0,0.00020761,4]
[421188364,1777225848627,-150.0,0.00020836,4]
[421188365,1777225848639,-214.10672339,0.00020854,2]
[421188366,1777225848649,-400.0,0.00020855,2]
[421188367,1777225848660,-1478.0,0.0002089,2]
[421188368,1777225848671,-150.0,0.00020911,4]
[421188369,1777225848680,-7791.74244541,0.00020925,2]
[421188370,1777225848690,-255.0,0.00020953,5]
[421188371,1777225848700,-300.0,0.00020954,2]
[421188372,1777225848710,-300.0,0.00020954,2]
[421188373,1777225848720,-300.0,0.00020954,2]
[421188374,1777225848730,-666.0,0.00020954,2]
[421188375,1777225848740,-666.0,0.00020954,2]
[421188376,1777225848749,-500.0,0.00020973,2]
[421188377,1777225848759,-500.0,0.00020973,2]
[421188378,1777225848768,-163.97669098,0.00020973,2]
[421188379,1777225848777,-500.0,0.00020973,2]
[421188380,1777225848786,-170.99842478,0.00020986,4]
[421188381,1777225848795,-281.5517981,0.00020986,4]
[421188382,1777225848804,-279.87553079,0.00020986,4]
[421188383,1777225848813,-229.09574755,0.00020986,4]
[421188384,1777225848823,-299.69488064,0.00020986,4]
[421188385,1777225848832,-154.37245581,0.00020986,4]
[421188386,1777225848842,-271.31136749,0.00020986,4]
[421188387,1777225848851,-261.40852501,0.00020986,4]
[421188388,1777225848862,-2026.4,0.00020998,2]
[421188389,1777225848871,-500.0,0.00020998,2]
[421188390,1777225848881,-500.0,0.00020999,2]
[421188391,1777225848891,-626.08,0.00020999,2]
[421188392,1777225848900,-500.0,0.00020999,2]
[421188393,1777225848910,-1476.72,0.00020999,2]
[421188394,1777225848920,-776.82,0.00020999,2]
[421188395,1777225848929,-500.0,0.00020999,2]
[421188396,1777225848939,-500.0,0.00020999,2]
[421188397,1777225848948,-648.72,0.00020999,2]
[421188398,1777225848958,-500.0,0.00020999,2]
[421188399,1777225848967,-535.54,0.00020999,2]
[421188400,1777225848977,-587.8,0.00020999,2]
[421188401,1777225848986,-847.22,0.00020999,2]
[421188402,1777225848995,-1249.43,0.00020999,2]
[421188403,1777225849005,-773.2,0.00020999,2]
[421188404,1777225849014,-500.0,0.00020999,2]
[421188405,1777225849023,-624.43,0.00020999,2]
[421188406,1777225849032,-273.18,0.00021,2]
[421188407,1777225849042,-8010.1,0.00021,2]
[421188408,1777225849052,-4091.83,0.00021,2]
[421188409,1777225849061,-4800.6,0.00021,2]
[421188410,1777225849071,-408.0,0.00021,2]
[421188411,1777225849080,-580.0,0.00021,2]
[421188412,1777225849090,-273.68,0.00021,2]
[421188413,1777225849100,-613.0,0.00021,2]
[421188414,1777225849109,-200.0,0.00021,2]
[421188415,1777225849118,-202.0,0.00021,2]
[421188416,1777225849127,-836.0,0.00021,2]
[421188417,1777225849137,-309.0,0.00021,2]
[421188418,1777225849147,-294.0,0.00021,2]
[421188419,1777225849156,-57983.84,0.00021,2]
[421188420,1777225849166,-351.0,0.00021,2]
[421188421,1777225849175,-315.842369,0.00021,2]
[421188422,1777225849185,-315.842369,0.00021,2]
[421188423,1777225849194,-315.842369,0.00021,2]
[421188424,1777225849204,-315.842369,0.00021,2]
[421188425,1777225849214,-570.0,0.00021,2]
[421188426,1777225849223,-450.0,0.00021,2]
[421188427,1777225849232,-2001.09298048,0.00021016,2]
[421188428,1777225849242,-2000.0,0.00021016,2]
[421188429,1777225849251,-2000.0,0.00021016,2]
[421188430,1777225849260,-1501.03884885,0.00021016,2]
[421188431,1777225849270,-284.0,0.00021018,2]
[421188432,1777225849279,-150.0,0.00021018,2]
[421188433,1777225849289,-237.0,0.00021018,2]
[421188434,1777225849298,-200.0,0.00021038,2]
[421188435,1777225849307,-262.078169,0.00021075,7]
[421188436,1777225849317,-1592.87721993,0.00021105,2]
[421188437,1777225849327,-200.0,0.00021105,2]
[421188438,1777225849336,-392.45971545,0.00021105,2]
[421188439,1777225849346,-233.51889341,0.00021105,2]
[421188440,1777225849355,-217.15233878,0.00021105,2]
[421188441,1777225849364,-200.0,0.00021106,2]
[421188442,1777225849373,-200.0,0.00021106,2]
[421188443,1777225849383,-200.0,0.00021106,2]
[421188444,1777225849393,-200.0,0.00021106,2]
[421188445,1777225849403,-200.0,0.00021106,2]
[421188446,1777225849413,-205.0,0.00021106,2]
[421188447,1777225849423,-327.559356,0.00021152,7]
[421188448,1777225849433,-2000.0,0.00021216,2]
[421188449,1777225849444,-1085.33227098,0.00021216,2]
[421188450,1777225849454,-749.71147501,0.00021216,2]
[421188451,1777225849464,-1500.30105511,0.00021216,2]
[421188452,1777225849474,-2000.0,0.00021216,2]
[421188453,1777225849483,-1861.79913859,0.00021216,2]
[421188454,1777225849492,-2000.0,0.00021216,2]
[421188455,1777225849502,-2000.0,0.00021216,2]
[421188456,1777225849512,-697.14389302,0.00021216,2]
[421188457,1777225849521,-2000.0,0.00021216,2]
[421188458,1777225849530,-187.95651894,0.00021242,21]
[421188459,1777225849539,-1479.0,0.00021265,2]
[421188460,1777225849548,-155.0,0.0002132,2]
[421188461,1777225849557,-1117.0,0.00021331,2]
[421188462,1777225849567,-2000.0,0.00021357,2]
[421188463,1777225849576,-2000.0,0.00021357,2]
[421188464,1777225849587,-1352.0,0.00021357,2]
[421188465,1777225849596,-1200.0,0.00021357,2]
[421188466,1777225849605,-1200.0,0.00021357,2]
[421188467,1777225849614,-1007.0,0.00021357,2]
[421188468,1777225849623,-500.0,0.00021367,2]
[421188469,1777225849632,-500.0,0.00021367,2]
[421188470,1777225849641,-536.18,0.00021367,2]
[421188471,1777225849650,-500.42,0.00021367,2]
[421188472,1777225849659,-739.0,0.00021372,2]
[421188473,1777225849669,-151.0,0.00021376,2]
[421188474,1777225849678,-1478.0,0.00021379,2]
[421188475,1777225849687,-350.0,0.00021399,2]
[421188476,1777225849696,-350.0,0.00021399,2]
[421188477,1777225849705,-350.0,0.00021399,2]
[421188478,1777225849714,-350.0,0.00021399,2]
[421188479,1777225849723,-350.0,0.00021399,2]
[421188480,1777225849732,-350.0,0.00021399,2]
[421188481,1777225849741,-350.0,0.00021399,2]
[421188482,1777225849751,-350.0,0.00021399,2]
[421188483,1777225849760,-494.0,0.00021399,2]
[421188484,1777225849769,-1478.0,0.00021474,2]
[421188485,1777225849778,-739.0,0.00021504,2]
[421188486,1777225849787,-1000.0,0.00021521,2]
[421188487,1777225849796,-1000.0,0.00021521,2]
[421188488,1777225849806,-1478.0,0.00021547,2]
[421188489,1777225849815,-155.0,0.00021549,2]